Workbook

Sheet 9R
C8: Type your name: | G8: Model: | I8: Rear Hitch: | K8: Rear PTO:
G9: 9370R | I9: Not Included | K9: Not Included
G10: =INDEX(model_9_w,MATCH(G9,model_9,0)) -> 12909.60726 | I10: =INDEX(hitch_9_w,MATCH(I9,hitch_9,0)) -> 0 | K10: =INDEX(PTO_9_w,MATCH(K9,PTO_9,0)) -> 0
G11: =INDEX(model_9_s,MATCH(G9,model_9,0)) -> 0.6322 | I11: =INDEX(hitch_9_s,MATCH(I9,hitch_9,0)) -> -0.14 | K11: =INDEX(PTO_9_s,MATCH(I9,PTO_9,0)) -> -0.368
G12: =INDEX(hp_9,MATCH(G9,model_9,0)) -> 370
C14: Name of analysis: | G14: Fuel level: | I14: No. of wheels: | K14: Tire size:
G15: Half | I15: Duals | K15: 710/70R42
G16: =IF(OR(G9="9370R",G9="9420R",G9="9470R"),INDEX(fuel_9_w,MATCH(G15,fuel_9,0)),INDEX(fuel_9_w_520,MATCH(G15,fuel_9,0))) -> 543.5525 | I16: =INDEX(wheels_9_w,MATCH(I15,wheels_9,0)) -> 0 | K16: =IF(I15="Singles",INDEX(singles_9_w,MATCH(K15,singles_9,0)),IF(I15="Duals",INDEX(duals_9_w,MATCH(K15,duals_9,0)),IF(I15="Triples",INDEX(triples_9_w,MATCH(K15,triples_9,0))))) -> 5599.961052
G17: =INDEX(fuel_9_s,MATCH(G15,fuel_9,0)) -> 0.152 | I17: =INDEX(wheels_9_s,MATCH(I15,wheels_9,0)) -> 0 | K17: 0.5
E19: Choose a wheel weight code -OR- build a custom package with the options below
K20: 1
C22: Front ballast | G22: Front wheel weights
C23: Weight support: | E23: Suitcase weights: | G23: 72 kg: | I23: 205 kg: | K23: 625 kg:
C24: Not Included | E24: None | G24: None | I24: None | K24: None
C25: =INDEX(FWS_9_w,MATCH(C24,FWS_9,0)) -> 0 | E25: =INDEX(FSW_9_w,MATCH(E24,FSW_9,0)) -> 0 | G25: =INDEX(w72_9_w,MATCH(G24,w72_9,0)) -> 0 | I25: =INDEX(w205_9_w,MATCH(I24,w205_9,0)) -> 0 | K25: =INDEX(w625_9_w,MATCH(K24,w625_9,0)) -> 0
C26: =INDEX(FWS_9_s,MATCH(C24,FWS_9,0)) -> 1.561 | E26: =INDEX(FSW_9_s,MATCH(E24,FSW_9,0)) -> 1.581 | G26: 1 | I26: 1 | K26: 1
C28: Rear ballast | G28: Rear wheel weights
C29: Weight support: | E29: Suitcase weights: | G29: 72 kg: | I29: 205 kg: | K29: 625 kg:
C30: Not Included | E30: None | G30: None | I30: None | K30: None
C31: =INDEX(RWS_9_w,MATCH(C30,RWS_9,0)) -> 0 | E31: =IF(OR(G9="9370R",G9="9420R",G9="9470R"),INDEX(RSW_9_w,MATCH(E30,RSW_9,0)),INDEX(RSW_9_w_520,MATCH(E30,RSW_9_520,0))) -> 0 | G31: =INDEX(Rw72_9_w,MATCH(G30,Rw72_9,0)) -> 0 | I31: =INDEX(Rw205_9_w,MATCH(I30,Rw205_9,0)) -> 0 | K31: =INDEX(Rw625_9_w,MATCH(K30,Rw625_9,0)) -> 0
C32: =INDEX(RWS_9_s,MATCH(C30,RWS_9,0)) -> -0.355 | E32: =IF(OR(G9="9370R",G9="9420R",G9="9470R"),INDEX(RSW_9_s,MATCH(E30,RSW_9,0)),INDEX(RSW_9_s_520,MATCH(E30,RSW_9_520,0))) -> -0.355 | G32: 0 | I32: 0 | K32: 0
C34: Enter any additional ballast (kg)
C35: Front support: | E35: Front axle: | G35: Side mount: | I35: Rear axle: | K35: Rear support:
C36: 0 | E36: 0 | G36: 0 | I36: 0 | K36: 0
C37: =C36 -> 0 | E37: =E36 -> 0 | G37: =G36 -> 0 | I37: =I36 -> 0 | K37: =K36 -> 0
C38: 1.57 | E38: 1 | G38: 0.6 | I38: 0 | K38: -0.355
C41: Total weight: | E41: =C49& " kg "&ROUND(C49*2.20462,0)& " lb" -> 19053 kg 42005 lb
C42: Weight / Engine power: | E42: =ROUND(C$49/G$12,0)& " kg/hp "& ROUND((C$49*2.20462)/G$12,0) &" lb/hp" -> 51 kg/hp 114 lb/hp
C44: Front axle weight: | E44: =E49&" kg "&ROUND(E49*2.20462,0)& " lb" -> 11044 kg 24348 lb
C45: Rear axle weight: | E45: =C49-E49&" kg "&ROUND((C49-E49)*2.20462,0)& " lb" -> 8009 kg 17657 lb | G45: =G49 -> 0.58 | I45: =100%-G45 -> 0.42 | K45: =TODAY() -> 2014-09-23
C49: =ROUND(SUM(G10,I10,K10,G16,I16,K16,C25,E25,G25,I25,K25,C31,E31,G31,I31,K31,C37,E37,G37,I37,K37),0) -> 19053 | E49: =ROUND(SUM(G10*G11,I10*I11,K10*K11,G16*G17,I16*I17,K16*K17,C25*C26,E25*E26,G25*G26,I25*I26,K25*K26,C31*C32,E31*E32,G31*G32,I31*I32,K31*K32,C37*C38,E37*E38,G37*G38,I37*I38,K37*K38),0) -> 11044 | G49: =ROUND(E49/C49,3) -> 0.58 | I49: =INDEX(PTOhp_9,MATCH(G9,model_9,0)) -> 335

Sheet 9RT
C8: Type your name: | G8: Model: | I8: Rear Hitch: | K8: Rear PTO:
G9: 9470RT | I9: Not Included | K9: Not Included
G10: =INDEX(model_9T_w,MATCH(G9,model_9T,0)) -> 18539.6 | I10: =INDEX(hitch_9T_w,MATCH(I9,hitch_9T,0)) -> 0 | K10: =INDEX(PTO_9T_w,MATCH(K9,PTO_9T,0)) -> 0
G11: =INDEX(model_9T_s,MATCH(G9,model_9T,0)) -> 0.5261 | I11: =INDEX(hitch_9T_s,MATCH(I9,hitch_9T,0)) -> 0 | K11: =INDEX(PTO_9T_s,MATCH(I9,PTO_9T,0)) -> 0
G12: =INDEX(hp_9T,MATCH(G9,model_9T,0)) -> 470
C14: Name of analysis: | G14: Fuel level: | I14: Tracks:
G15: Half | I15: 30 in, 4500 Series
G16: =INDEX(fuel_9T_w,MATCH(G15,fuel_9T,0)) -> 607.7275 | I16: =INDEX(tracks_9T_w,MATCH(I15,tracks_9T,0)) -> 1560
G17: =INDEX(fuel_9T_s,MATCH(G15,fuel_9T,0)) -> 0.4 | I17: =INDEX(tracks_9T_s,MATCH(I15,tracks_9T,0)) -> 0.4252
C19: Front ballast | G19: Front idler weights
C20: Weight support: | E20: Suitcase weights: | G20: 36 kg: | I20: 72 kg: | K20: 205 kg:
C21: Not Included | E21: None | G21: None | I21: None | K21: None
C22: =INDEX(FWS_9T_w,MATCH(C21,FWS_9T,0)) -> 0 | E22: =INDEX(FSW_9T_w,MATCH(E21,FSW_9T,0)) -> 0 | G22: =INDEX(w36_9T_w,MATCH(G21,w36_9T,0)) -> 0 | I22: =INDEX(w72_9T_w,MATCH(I21,w72_9T,0)) -> 0 | K22: =INDEX(w205_9T_w,MATCH(K21,w205_9T,0)) -> 0
C23: =INDEX(FWS_9T_s,MATCH(C21,FWS_9T,0)) -> 0 | E23: =INDEX(FSW_9T_s,MATCH(E21,FSW_9T,0)) -> 1.8484 | G23: 1 | I23: 1 | K23: 1
C25: Side ballast | G25: Enter any additional ballast (kg)
C26: Weight support: | E26: Suitcase weights: | G26: Front support: | I26: Front axle: | K26: Side support:
C27: Not Included | E27: None | G27: 0 | I27: 0 | K27: 0
C28: =INDEX(SWS_9T_w,MATCH(C27,SWS_9T,0)) -> 0 | E28: =INDEX(SSW_9T_w,MATCH(E27,SSW_9T,0)) -> 0 | G28: =G27 -> 0 | I28: =I27 -> 0 | K28: =K27 -> 0
C29: =INDEX(SWS_9T_s,MATCH(C27,SWS_9T,0)) -> 0.637 | E29: =INDEX(SSW_9T_s,MATCH(E27,SSW_9T,0)) -> 0.637 | G29: 1.75 | I29: 1 | K29: 0.637
C32: Total weight: | E32: =C40& " kg "&ROUND(C40*2.20462,0)& " lb" -> 20707 kg 45651 lb
C33: Weight / Engine power: | E33: =ROUND(C$40/G$12,0)& " kg/hp "& ROUND((C$40*2.20462)/G$12,0) &" lb/hp" -> 44 kg/hp 97 lb/hp
C35: Front axle weight: | E35: =E40&" kg "&ROUND(E40*2.20462,0)& " lb" -> 10660 kg 23501 lb
C36: Rear axle weight: | E36: =C40-E40&" kg "&ROUND((C40-E40)*2.20462,0)& " lb" -> 10047 kg 22150 lb | G36: =G40 -> 0.515 | I36: =100%-G36 -> 0.485 | K36: =TODAY() -> 2014-09-23
C40: =ROUND(SUM(G10,I10,K10,G16,I16,C22,E22,G22,I22,K22,C28,E28,G28,I28,K28),0) -> 20707 | E40: =ROUND(SUM(G10*G11,I10*I11,K10*K11,G16*G17,I16*I17,C22*C23,E22*E23,G22*G23,I22*I23,K22*K23,C28*C29,E28*E29,G28*G29,I28*I29,K28*K29),0) -> 10660 | G40: =ROUND(E40/C40,3) -> 0.515 | I40: =INDEX(PTOhp_9T,MATCH(G9,model_9T,0)) -> 329

Sheet 9R Option Weights (hidden)
B3: kg total | C3: % front axle
A4: Model | D4: hp | E4: PTO-hp
A5: 9370R | B5: 12909.60726 | C5: 0.6322 | D5: 370 | E5: 335
A6: 9420R | B6: 13505.12152 | C6: 0.6437 | D6: 420 | E6: 335
A7: 9470R | B7: 13505.12152 | C7: 0.6437 | D7: 470 | E7: 335
A8: 9520R | B8: 13521.43698 | C8: 0.6368 | D8: 520 | E8: 335
A9: 9570R | B9: 13502.06238 | C9: 0.6311 | D9: 570 | E9: 335
A10: 9620R | B10: 13502.06238 | C10: 0.6311 | D10: 620 | E10: 335
A12: Rear 3-Point Hitch
A13: Not Included | B13: 0 | C13: -0.14
A14: Included | B14: 823.8 | C14: -0.14
A16: Rear PTO
A17: Not Included | B17: 0 | C17: -0.368
A18: Included | B18: 419.3 | C18: -0.368
A20: Fuel level | B20: 370-420 | D20: 520+ | F20: Diesel + DEF
A21: Empty | B21: 0 | C21: 0 | D21: 0 | F21: 370-470: diesel volume of 1173 L at .85kg/L
A22: Half | B22: =0.5*B23 -> 543.5525 | C22: 0.152 | D22: =0.5*D23 -> 688.4775 | F22: 520-620: diesel volume of 1514 L at .85kg/L
A23: Full | B23: =(1173*0.85)+(83*1.085) -> 1087.105 | C23: 0.168 | D23: =(1514*0.85)+(83*1.085) -> 1376.955 | F23: def volume of 83 L at 1.085 kg/L
A25: No. of wheels
A26: Singles | B26: 0 | C26: 0
A27: Duals | B27: 0 | C27: 0
A28: Triples | B28: 0 | C28: 0
A30: Tire size
A31: Singles
A32: 800/70R38 | B32: 3139.94803 | C32: 0.5
A33: IF800/70R38 | B33: 3059.97969 | C33: 0.5
A34: Duals
A35: 480/80R46 | B35: 3967.980956 | C35: 0.5
A36: 480/80R50 | B36: 4599.971247 | C36: 0.5
A37: IF480/80R50 | B37: 5039.955875 | C37: 0.5
A38: 520/85R42 | B38: 4099.976344 | C38: 0.5
A39: 520/85R46 | B39: 4679.939587 | C39: 0.5
A40: 620/70R42 | B40: 4739.904502 | C40: 0.5
A41: 620/70R46 | B41: 4879.928476 | C41: 0.5
A42: 650/85R38 | B42: 5060 | C42: 0.5 | D42: added from 8R calc
A43: IF650/85R38 | B43: 5539.950777 | C43: 0.5
A44: 710/70R38 | B44: 5199.937914 | C44: 0.5
A45: IF710/70R38 | B45: 5262.3 | C45: 0.5 | D45: added from 8R calc
A46: 710/70R42 | B46: 5599.961052 | C46: 0.5
A47: IF710/70R42 | B47: 5879.918281 | C47: 0.5
A48: 800/70R38 | B48: 6099.955954 | C48: 0.5
A49: IF800/70R38 | B49: 5939.928556 | C49: 0.5
A50: Triples
A51: 480/80R46 | B51: 5827.936592 | C51: 0.5
A52: 480/80R50 | B52: 6759.932896 | C52: 0.5
A53: IF480/80R50 | B53: 7399.906414 | C53: 0.5
A54: 520/85R42 | B54: 6059.949105 | C54: 0.5
A55: 520/85R46 | B55: 6959.921786 | C55: 0.5
A57: Front Weight Support
A58: Not Included | B58: 0 | C58: 1.561
A59: Included | B59: 389.2 | C59: 1.561
A61: Front Suitcase Weights
A62: None | B62: 0 | C62: 1.581
A63: 8 | B63: =43*A63 -> 344 | C63: 1.581
A64: 16 | B64: =43*A64 -> 688 | C64: 1.581
A65: 26 | B65: 1118 | C65: 1.581
A66: 36 | B66: 1548 | C66: 1.581
A68: Front Wheel Weights
A69: 72 kg
A70: None | B70: 0 | C70: 1
A71: One pair | B71: 144 | C71: 1
A72: 205 kg
A73: None | B73: 0 | C73: 1
A74: One pair | B74: 410 | C74: 1
A75: Two pairs | B75: =B74*2 -> 820 | C75: 1
A76: 625 kg
A77: None | B77: 0 | C77: 1
A78: One pair | B78: 1250 | C78: 1
A80: Drawbar Weight Support
A81: Not Included | B81: 0 | C81: -0.355
A82: Included | B82: 81 | C82: -0.355
A84: Rear Suitcase Weights | B84: 370-420 | D84: 520+
A85: None | B85: 0 | C85: -0.355 | D85: None | E85: 0 | F85: -0.355
A86: 10 | B86: =43*A86 -> 430 | C86: -0.355 | D86: 13 | E86: =43*D86 -> 559 | F86: -0.355
A87: 15 | B87: =43*A87 -> 645 | C87: -0.355 | D87: 18 | E87: =43*D87 -> 774 | F87: -0.355
A89: Rear Wheel Weights
A90: 72 kg
A91: None | B91: 0 | C91: 0
A92: One pair | B92: 144 | C92: 0
A93: 205 kg
A94: None | B94: 0 | C94: 0
A95: One pair | B95: 410 | C95: 0
A96: Two pairs | B96: =B95*2 -> 820 | C96: 0
A97: Three pairs | B97: =B95*3 -> 1230 | C97: 0
A98: Four pairs | B98: =B95*4 -> 1640 | C98: 0
A99: 625 kg
A100: None | B100: 0 | C100: 0
A101: One pair | B101: 1250 | C101: 0
A103: Ballast packages
A104: None
A105: 897A
A106: 897B
A107: 897C
A108: 897D
A109: 897E
A110: 897F
A111: 897G | B111: hitch
A112: 897H | B112: hitch
A113: 897J | B113: hitch

Sheet 9RT Option Weights (hidden)
B3: kg total | C3: % front axle
A4: Model | D4: hp | E4: PTO-hp
A5: 9470RT | B5: 18539.6 | C5: 0.5261 | D5: 470 | E5: 329
A6: 9520RT | B6: 18539.6 | C6: 0.5261 | D6: 520 | E6: 329
A7: 9570RT | B7: 18395.4 | C7: 0.5259 | D7: 570 | E7: 329
A9: Rear 3-Point Hitch
A10: Not Included | B10: 0 | C10: 0
A11: Included | B11: 1007.7 | C11: -0.2393
A13: Rear PTO
A14: Not Included | B14: 0 | C14: 0
A15: Included | B15: 604.5 | C15: -0.0154
A17: Fuel level | E17: Diesel + DEF
A18: Empty | B18: 0 | C18: 0.4 | E18: diesel volume of 1324 L at .85kg/L
A19: Half | B19: =0.5*B20 -> 607.7275 | C19: 0.4 | E19: def volume of 83 L at 1.085 kg/L
A20: Full | B20: =(1324*0.85)+(83*1.085) -> 1215.455 | C20: 0.4
A23: Tracks
A24: 30 in, 4500 Series | B24: 1560 | C24: 0.4252
A25: 30 in, 6500 Series | B25: 1558.7 | C25: 0.4252
A26: 36 in, 4500 Series | B26: 1650 | C26: 0.4252
A27: 36 in, 6500 Series | B27: 1828 | C27: 0.4252
A29: Front Weight Support
A30: Not Included | B30: 0 | C30: 0
A31: Included | B31: 310.7 | C31: 1.7194
A33: Front Suitcase Weights
A34: None | B34: 0 | C34: 1.8484
A35: 4 | B35: =43*A35 -> 172 | C35: 1.8484
A36: 8 | B36: =43*A36 -> 344 | C36: 1.8484
A37: 12 | B37: 516 | C37: 1.8484
A38: 16 | B38: 688 | C38: 1.8484
A39: 20 | B39: 860 | C39: 1.8484
A40: 26 | B40: 1118 | C40: 1.8484
A42: Idler Weights
A43: 36 kg
A44: None | B44: 0 | C44: 1
A45: One pair | B45: 72 | C45: 1
A46: Two pairs | B46: 144 | C46: 1
A47: 72 kg
A48: None | B48: 0 | C48: 1
A49: One pair | B49: 144 | C49: 1
A50: Two pairs | B50: =144*2 -> 288 | C50: 1
A51: 205 kg
A52: None | B52: 0 | C52: 1
A53: One pair | B53: 410 | C53: 1
A54: Two pairs | B54: =410*2 -> 820 | C54: 1
A56: Side Weight Supports
A57: Not Included | B57: 0 | C57: 0.637
A58: Included | B58: 99.3 | C58: 0.637
A60: Side Suitcase Weights
A61: None | B61: 0 | C61: 0.637
A62: 4 per side | B62: =43*8 -> 344 | C62: 0.637
A63: 8 per side | B63: =43*16 -> 688 | C63: 0.637
A64: 12 per side | B64: =43*24 -> 1032 | C64: 0.637
A65: 16 per side | B65: =43*32 -> 1376 | C65: 0.637
